fUSD/lending_fUSD_20260405
["ID","MTS","AMOUNT","RATE_DAILY","PERIOD"]
[419846805,1775417442894,-150.0,0.000144,2]
[419846806,1775417442903,-150.0,0.000144,2]
[419846807,1775417442913,-150.0,0.000144,2]
[419846808,1775417442922,-150.0,0.000144,2]
[419846809,1775417442931,-150.0,0.000144,2]
[419846810,1775417442940,-150.0,0.000144,2]
[419846811,1775417442950,-150.0,0.000144,2]
[419846812,1775417442959,-150.0,0.000144,2]
[419846813,1775417442968,-150.0,0.000144,2]
[419846814,1775417442978,-150.0,0.000144,2]
[419846815,1775417442987,-150.0,0.00014419,2]
[419846816,1775417442996,-150.0,0.00014422,2]
[419846817,1775417443007,-150.0,0.00014424,2]
[419846818,1775417443016,-150.0,0.0001443,2]
[419846819,1775417443026,-150.0,0.0001443,2]
[419846820,1775417443036,-150.0,0.00014431,2]
[419846821,1775417443046,-150.0,0.00014438,2]
[419846822,1775417443055,-948.1,0.00014443,2]
[419846823,1775417443065,-855.78,0.00014443,2]
[419846824,1775417443075,-500.0,0.00014443,2]
[419846825,1775417443085,-500.0,0.00014444,2]
[419846826,1775417443094,-150.0,0.00014444,2]
[419846827,1775417443104,-150.0,0.00014448,2]
[419846828,1775417443113,-150.0,0.00014455,2]
[419846829,1775417443123,-150.0,0.00014456,2]
[419846830,1775417443133,-150.0,0.0001446,2]
[419846831,1775417443142,-150.0,0.0001446,2]
[419846832,1775417443152,-150.0,0.00014463,2]
[419846833,1775417443162,-150.0,0.00014467,2]
[419846834,1775417443172,-150.0,0.00014472,2]
[419846835,1775417443181,-150.0,0.00014473,2]
[419846836,1775417443191,-150.0,0.00014475,2]
[419846837,1775417443201,-150.0,0.00014489,2]
[419846838,1775417443211,-150.0,0.00014491,2]
[419846839,1775417443220,-150.0,0.00014491,2]
[419846840,1775417443230,-150.0,0.00014491,4]
[419846841,1775417443239,-150.0,0.00014494,2]
[419846842,1775417443249,-150.0,0.00014494,2]
[419846843,1775417443259,-150.0,0.00014496,2]
[419846844,1775417443269,-150.0,0.000145,2]
[419846845,1775417443278,-251.0,0.00014505,4]
[419846846,1775417443288,-155.0700211,0.00014505,4]
[419846847,1775417443297,-221.3116382,0.00014507,4]
[419846848,1775417443307,-150.0,0.0001451,2]
[419846849,1775417443317,-150.0,0.00014511,2]
[419846851,1775417443327,-150.0,0.00014513,2]
[419846854,1775417443345,-500.0,0.00014517,2]
[419846855,1775417443358,-150.0,0.00014519,2]
[419846856,1775417443368,-150.0,0.00014521,2]
[419846857,1775417443379,-150.0,0.00014521,2]
[419846858,1775417443389,-500.0,0.00014521,2]
[419846859,1775417443399,-150.0,0.00014525,2]
[419846860,1775417443409,-150.0,0.00014532,2]
[419846861,1775417443419,-5445.78,0.00014533,2]
[419846862,1775417443429,-150.0,0.00014533,2]
[419846863,1775417443439,-150.0,0.00014543,2]
[419846864,1775417443449,-150.0,0.00014545,2]
[419846865,1775417443460,-150.0,0.00014551,2]
[419846866,1775417443470,-150.0,0.00014551,2]
[419846867,1775417443480,-150.0,0.00014551,2]
[419846868,1775417443490,-150.0,0.00014556,2]
[419846869,1775417443500,-150.0,0.00014557,2]
[419846870,1775417443510,-594.86,0.00014564,2]
[419846871,1775417443520,-500.0,0.00014564,2]
[419846872,1775417443531,-500.0,0.00014564,2]
[419846873,1775417443541,-500.0,0.00014564,2]
[419846874,1775417443551,-500.0,0.00014564,2]
[419846875,1775417443561,-584.32,0.00014564,2]
[419846876,1775417443571,-500.0,0.00014564,2]
[419846877,1775417443580,-500.0,0.00014564,2]
[419846878,1775417443590,-500.0,0.00014564,2]
[419846879,1775417443601,-586.9,0.00014564,2]
[419846880,1775417443611,-500.0,0.00014564,2]
[419846881,1775417443621,-500.0,0.00014564,2]
[419846882,1775417443631,-30172.71823857,0.00014564,2]
[419846883,1775417443641,-38174.31273053,0.00014564,2]
[419846884,1775417443651,-150.0,0.00014566,2]
[419846885,1775417443661,-150.0,0.00014567,2]
[419846886,1775417443671,-150.0,0.00014569,2]
[419846887,1775417443680,-150.0,0.00014578,2]
[419846888,1775417443691,-150.0,0.00014581,2]
[419846889,1775417443701,-150.0,0.00014581,2]
[419846890,1775417443711,-150.0,0.00014588,2]
[419846891,1775417443720,-150.0,0.00014588,2]
[419846892,1775417443730,-150.0,0.00014591,2]
[419846893,1775417443740,-150.0,0.000146,2]
[419846894,1775417443750,-150.0,0.000146,2]
[419846895,1775417443760,-150.0,0.00014607,2]
[419846896,1775417443770,-150.0,0.00014611,2]
[419846897,1775417443780,-150.0,0.00014611,2]
[419846898,1775417443790,-7881.78734666,0.00014612,2]
[419846899,1775417443800,-150.0,0.00014615,2]
[419846900,1775417443810,-209.74,0.00014616,2]
[419846901,1775417443819,-150.0,0.00014618,2]
[419846902,1775417443829,-150.0,0.0001462,2]
[419846903,1775417443845,-150.0,0.00014621,2]
[419846904,1775417443855,-150.0,0.00014622,2]
[419846905,1775417443865,-186.98,0.00014625,2]
[419846906,1775417443876,-150.0,0.00014626,2]
[419846907,1775417443886,-500.0,0.00014631,2]
[419846908,1775417443897,-500.0,0.00014631,2]
[419846909,1775417443907,-500.0,0.00014631,2]
[419846910,1775417443917,-500.0,0.00014631,2]
[419846911,1775417443928,-500.0,0.00014631,2]
[419846912,1775417443939,-500.0,0.00014631,2]
[419846913,1775417443949,-500.0,0.00014631,2]
[419846914,1775417443959,-160.7467095,0.00014631,2]
[419846915,1775417443969,-500.0,0.00014631,2]
[419846916,1775417443980,-515.7358709,0.00014631,2]
[419846917,1775417443990,-500.0,0.00014631,2]
[419846918,1775417444001,-569.20510167,0.00014631,2]
[419846919,1775417444011,-162.72924009,0.00014631,2]
[419846920,1775417444023,-500.0,0.00014631,2]
[419846921,1775417444033,-500.0,0.00014631,2]
[419846922,1775417444043,-500.0,0.00014631,2]
[419846923,1775417444053,-500.0,0.00014631,2]
[419846924,1775417444063,-500.0,0.00014631,2]
[419846925,1775417444073,-339.79133416,0.00014631,2]
[419846926,1775417444084,-607.20051974,0.00014631,2]
[419846927,1775417444095,-500.0,0.00014631,2]
[419846928,1775417444105,-500.50066882,0.00014631,2]
[419846929,1775417444115,-312.74353669,0.00014631,2]
[419846930,1775417444127,-500.0,0.00014631,2]
[419846931,1775417444138,-168.69935806,0.00014631,2]
[419846932,1775417444149,-500.0,0.00014631,2]
[419846933,1775417444160,-500.0,0.00014631,2]
[419846934,1775417444171,-518.73332026,0.00014631,2]
[419846935,1775417444181,-500.0,0.00014631,2]
[419846936,1775417444192,-500.0,0.00014631,2]
[419846937,1775417444202,-500.0,0.00014631,2]
[419846938,1775417444212,-500.0,0.00014631,2]
[419846939,1775417444222,-500.0,0.00014631,2]
[419846940,1775417444232,-500.0,0.00014631,2]
[419846941,1775417444242,-210.98153295,0.00014631,2]
[419846942,1775417444252,-202.64993829,0.00014631,2]
[419846943,1775417444263,-150.0,0.00014639,2]
[419846944,1775417444273,-150.0,0.00014642,2]
[419846945,1775417444283,-150.0,0.00014642,2]
[419846946,1775417444293,-150.0,0.00014644,2]
[419846947,1775417444303,-150.0,0.00014645,2]
[419846948,1775417444313,-150.0,0.00014651,2]
[419846949,1775417444323,-150.0,0.00014663,2]
[419846950,1775417444333,-150.0,0.00014664,2]
[419846951,1775417444348,-150.0,0.00014667,2]
[419846952,1775417444359,-150.0,0.00014667,2]
[419846953,1775417444369,-150.0,0.00014672,2]
[419846954,1775417444380,-150.0,0.00014672,2]
[419846955,1775417444391,-150.0,0.00014676,2]
[419846956,1775417444403,-150.0,0.00014682,2]
[419846957,1775417444413,-150.0,0.00014682,2]
[419846958,1775417444424,-150.0,0.00014687,2]
[419846959,1775417444434,-150.0,0.00014689,2]
[419846960,1775417444446,-150.0,0.00014691,2]
[419846961,1775417444456,-150.0,0.000147,2]
[419846962,1775417444467,-150.0,0.00014701,2]
[419846963,1775417444478,-150.0,0.00014702,2]
[419846964,1775417444490,-150.0,0.00014702,2]
[419846965,1775417444501,-1000.0,0.00014708,2]
[419846966,1775417444511,-150.0,0.0001471,2]
[419846967,1775417444522,-150.0,0.00014711,2]
[419846968,1775417444532,-150.0,0.00014714,2]
[419846969,1775417444542,-150.0,0.0001472,2]
[419846970,1775417444553,-150.0,0.00014731,2]
[419846971,1775417444563,-150.0,0.00014732,2]
[419846972,1775417444573,-150.0,0.00014732,2]
[419846973,1775417444584,-150.0,0.00014733,2]
[419846974,1775417444595,-150.0,0.00014734,2]
[419846975,1775417444605,-150.0,0.00014739,2]
[419846976,1775417444615,-150.0,0.00014745,2]
[419846977,1775417444625,-5061.29326262,0.00014746,2]
[419846978,1775417444636,-150.0,0.00014756,2]
[419846979,1775417444646,-150.0,0.00014758,2]
[419846980,1775417444658,-150.0,0.00014758,2]
[419846981,1775417444669,-150.0,0.00014762,2]
[419846982,1775417444679,-150.0,0.00014762,2]
[419846983,1775417444689,-150.0,0.00014764,2]
[419846984,1775417444699,-209.74,0.00014772,2]
[419846985,1775417444709,-500.0,0.00014773,2]
[419846986,1775417444720,-2000.0,0.00014774,2]
[419846987,1775417444730,-2000.0,0.00014774,2]
[419846988,1775417444739,-2000.0,0.00014774,2]
[419846989,1775417444749,-2000.0,0.00014774,2]
[419846990,1775417444760,-2000.0,0.00014774,2]
[419846991,1775417444769,-2000.0,0.00014774,2]
[419846992,1775417444779,-2000.0,0.00014774,2]
[419846993,1775417444789,-2000.0,0.00014774,2]
[419846994,1775417444799,-2000.0,0.00014774,2]
[419846995,1775417444809,-2000.0,0.00014774,2]
[419846996,1775417444819,-2000.0,0.00014774,2]
[419846997,1775417444829,-2000.0,0.00014774,2]
[419846998,1775417444838,-2000.0,0.00014774,2]
[419846999,1775417444850,-2000.0,0.00014774,2]
[419847000,1775417444860,-2000.0,0.00014774,2]
[419847001,1775417444871,-2000.0,0.00014774,2]
[419847002,1775417444881,-2000.0,0.00014774,2]
[419847003,1775417444891,-2000.0,0.00014774,2]
[419847004,1775417445197,-2000.0,0.00014774,2]
[419847005,1775417445206,-2000.0,0.00014774,2]
[419847006,1775417445215,-151.0,0.00014774,2]
[419847007,1775417445224,-151.0,0.00014774,2]
[419847008,1775417445233,-158.086667,0.00014774,2]
[419847009,1775417445243,-150.0,0.00014776,2]
[419847010,1775417445252,-150.0,0.00014776,2]
[419847011,1775417445260,-150.0,0.00014778,2]
[419847012,1775417445270,-150.0,0.00014782,2]
[419847013,1775417445279,-150.0,0.00014786,2]
[419847014,1775417445288,-186.98,0.00014788,2]
[419847015,1775417445299,-500.0,0.00014791,2]
[419847016,1775417445308,-150.0,0.00014792,2]
[419847017,1775417445317,-150.0,0.00014792,2]
[419847019,1775417445326,-1000.0,0.00014793,2]
[419847020,1775417445335,-500.0,0.00014795,2]
[419847022,1775417445345,-553.41835149,0.00014795,2]
[419847023,1775417445353,-150.0,0.00014795,2]
[419847024,1775417445363,-150.0,0.000148,2]
[419847025,1775417445372,-150.0,0.000148,2]
[419847026,1775417445381,-150.0,0.000148,2]
[419847027,1775417445390,-500.0,0.00014805,2]
[419847028,1775417445400,-150.0,0.00014806,2]
[419847029,1775417445409,-500.0,0.00014806,2]
[419847030,1775417445418,-281.32,0.00014806,2]
[419847031,1775417445435,-150.0,0.00014808,2]
[419847032,1775417445449,-150.0,0.00014814,2]
[419847033,1775417445458,-500.0,0.0001482,2]
[419847034,1775417445467,-213.94,0.0001482,2]
[419847035,1775417445477,-500.0,0.00014821,2]
[419847036,1775417445486,-160.0,0.00014822,2]
[419847037,1775417445496,-150.0,0.00014822,2]
[419847038,1775417445505,-150.0,0.00014823,2]
[419847039,1775417445515,-150.0,0.00014823,2]
[419847040,1775417445524,-150.0,0.0001483,2]
[419847041,1775417445534,-150.0,0.00014833,2]
[419847042,1775417445543,-500.0,0.00014835,2]
[419847043,1775417445552,-281.32,0.00014835,2]
[419847044,1775417445562,-150.0,0.00014836,2]
[419847045,1775417445572,-150.0,0.00014839,2]
[419847046,1775417445581,-150.0,0.00014841,2]
[419847047,1775417445591,-150.0,0.00014844,2]
[419847048,1775417445601,-150.0,0.00014852,2]
[419847049,1775417445611,-7440.37,0.00014853,2]
[419847050,1775417445621,-150.0,0.00014853,2]
[419847051,1775417445631,-150.0,0.00014853,2]
[419847052,1775417445641,-150.0,0.00014854,2]
[419847053,1775417445652,-150.0,0.00014867,2]
[419847054,1775417445661,-150.0,0.00014871,2]
[419847055,1775417445672,-150.0,0.00014871,2]
[419847056,1775417445681,-150.0,0.00014878,2]
[419847057,1775417445693,-500.0,0.00014879,2]
[419847058,1775417445703,-500.0,0.00014879,2]
[419847059,1775417445713,-150.0,0.00014883,2]
[419847060,1775417445724,-150.0,0.00014883,2]
[419847061,1775417445735,-150.0,0.00014889,2]
[419847062,1775417445745,-150.0,0.00014889,2]
[419847063,1775417445756,-359.91832033,0.00014893,2]
[419847064,1775417445767,-1000.0,0.00014895,2]
[419847065,1775417445777,-150.0,0.00014897,2]
[419847066,1775417445788,-500.0,0.00014898,2]
[419847067,1775417445798,-584.32,0.00014898,2]
[419847068,1775417445810,-1399.77259342,0.00014898,2]
[419847069,1775417445820,-30172.71823857,0.00014898,2]
[419847070,1775417445829,-38174.31273053,0.00014898,2]
[419847071,1775417445839,-168.7814,0.000149,2]
[419847072,1775417445848,-150.0,0.000149,2]
[419847073,1775417445857,-150.0,0.00014901,2]
[419847074,1775417445866,-150.0,0.00014902,2]
[419847075,1775417445875,-3000.0,0.00014904,2]
[419847076,1775417445884,-2000.0,0.00014904,2]
[419847077,1775417445894,-150.0,0.00014908,2]
[419847078,1775417445903,-150.0,0.00014909,2]
[419847079,1775417445912,-170.42861274,0.00014909,2]
[419847080,1775417445921,-170.42861274,0.00014909,2]
[419847081,1775417445932,-150.0,0.00014911,2]
[419847082,1775417445942,-150.0,0.00014913,2]
[419847083,1775417445953,-150.0,0.00014913,2]
[419847084,1775417445963,-500.0,0.00014919,2]
[419847085,1775417445973,-519.03182682,0.00014919,2]
[419847086,1775417445984,-150.0,0.00014925,2]
[419847087,1775417445996,-150.0,0.00014927,2]
[419847088,1775417446005,-7879.285853,0.00014928,7]
[419847089,1775417446014,-500.0,0.00014932,2]
[419847090,1775417446025,-150.0,0.00014933,2]
[419847091,1775417446034,-150.0,0.00014933,2]
[419847092,1775417446044,-150.0,0.00014933,2]
[419847093,1775417446054,-150.0,0.00014933,2]
[419847094,1775417446063,-1000.0,0.00014934,2]
[419847095,1775417446073,-1000.0,0.00014935,2]
[419847096,1775417446083,-150.0,0.00014943,2]
[419847097,1775417446093,-150.0,0.00014943,2]
[419847098,1775417446102,-150.0,0.00014946,2]
[419847099,1775417446112,-150.0,0.00014949,2]
[419847100,1775417446121,-1000.0,0.0001495,2]
[419847101,1775417446130,-150.0,0.00014952,2]
[419847102,1775417446139,-174.78,0.00014952,2]
[419847103,1775417446150,-5409.623458,0.00014954,2]
[419847104,1775417446159,-6436.083543,0.00014954,7]
[419847105,1775417446168,-5759.392598,0.00014954,2]
[419847106,1775417446179,-150.0,0.00014956,2]
[419847108,1775417446189,-150.0,0.00014965,2]
[419847110,1775417446198,-150.0,0.00014965,2]
[419847111,1775417446208,-161.91170216,0.0001497,2]
[419847112,1775417446217,-150.0,0.00014973,2]
[419847113,1775417446227,-150.0,0.00014974,2]
[419847114,1775417446237,-150.0,0.00014974,2]
[419847116,1775417446246,-174.78,0.00014975,2]
[419847117,1775417446255,-150.0,0.00014978,2]
[419847118,1775417446264,-150.0,0.00014982,2]
[419847119,1775417446274,-1000.0,0.00014983,2]
[419847120,1775417446283,-150.0,0.00014984,2]
[419847121,1775417446292,-249.31,0.00014992,2]
[419847122,1775417446301,-150.0,0.00014996,2]
[419847123,1775417446311,-150.0,0.00014997,2]
[419847124,1775417446320,-948.1,0.00014999,2]
[419847125,1775417446330,-855.78,0.00014999,2]
[419847126,1775417446340,-500.0,0.00014999,2]
[419847127,1775417446349,-151.0,0.00014999,2]
[419847128,1775417446358,-300.0,0.00015,2]
[419847129,1775417446367,-500.0,0.00015,2]
[419847130,1775417446376,-500.0,0.00015,2]
[419847131,1775417446386,-500.0,0.00015,2]
[419847132,1775417446395,-500.0,0.00015,2]
[419847133,1775417446405,-500.0,0.00015,2]
[419847134,1775417446414,-500.0,0.00015,2]
[419847135,1775417446424,-500.0,0.00015,2]
[419847136,1775417446433,-500.0,0.00015,2]
[419847137,1775417446442,-500.0,0.00015,2]
[419847138,1775417446451,-500.0,0.00015,2]
[419847139,1775417446460,-500.0,0.00015,2]
[419847140,1775417446470,-500.0,0.00015,2]
[419847141,1775417446479,-199.41,0.00015,2]
[419847142,1775417446488,-500.0,0.00015,2]
[419847143,1775417446498,-500.0,0.00015,2]
[419847144,1775417446507,-468.12,0.00015,2]
[419847145,1775417446516,-3004.07750266,0.00015,2]
[419847146,1775417446526,-150.0,0.00015,2]
[419847147,1775417446535,-150.0,0.00015,2]
[419847148,1775417446544,-150.0,0.00015002,2]
[419847149,1775417446553,-150.0,0.00015004,2]
[419847150,1775417446562,-150.0,0.00015004,2]
[419847151,1775417446571,-150.0,0.00015007,2]
[419847152,1775417446581,-2000.0,0.00015015,2]
[419847153,1775417446590,-500.0,0.00015015,2]
[419847154,1775417446598,-150.0,0.00015021,2]
[419847155,1775417446608,-150.0,0.00015021,2]
[419847156,1775417446617,-150.0,0.00015022,2]
[419847157,1775417446626,-150.0,0.00015027,2]
[419847158,1775417446635,-150.0,0.00015034,2]
[419847159,1775417446644,-150.0,0.00015034,2]
[419847160,1775417446653,-1000.0,0.00015037,2]
[419847161,1775417446663,-150.0,0.0001504,2]
[419847162,1775417446671,-7881.78734666,0.00015041,2]
[419847163,1775417446681,-150.0,0.00015044,2]
[419847164,1775417446690,-150.0,0.00015045,2]
[419847165,1775417446699,-2766.0,0.00015045,2]
[419847166,1775417446708,-150.0,0.00015055,2]
[419847167,1775417446718,-150.0,0.00015059,2]
[419847168,1775417446726,-150.0,0.00015059,2]
[419847169,1775417446735,-150.0,0.00015062,2]
[419847170,1775417446745,-150.0,0.00015064,2]
[419847171,1775417446754,-150.0,0.00015064,2]
[419847172,1775417446763,-500.0,0.00015065,2]
[419847173,1775417446773,-150.0,0.00015067,2]
[419847174,1775417446782,-5957.33,0.00015068,2]
[419847175,1775417446791,-800.0,0.00015068,2]
[419847176,1775417446800,-150.0,0.00015069,2]
[419847177,1775417446810,-500.0,0.00015069,2]
[419847178,1775417446819,-150.0,0.00015078,2]
[419847179,1775417446828,-433.0,0.00015084,2]
[419847180,1775417446837,-150.0,0.00015089,2]
[419847181,1775417446846,-150.0,0.0001509,2]
[419847182,1775417446856,-150.0,0.00015093,2]
[419847183,1775417446865,-150.0,0.00015094,2]
[419847184,1775417446875,-150.0,0.00015094,2]
[419847185,1775417446884,-150.0,0.00015096,2]
[419847186,1775417446893,-150.0,0.000151,2]
[419847187,1775417446903,-641.22,0.00015103,2]
[419847188,1775417446912,-151.0,0.00015107,2]
[419847189,1775417446921,-155.02882,0.00015107,2]
[419847190,1775417446931,-150.0,0.00015111,2]
[419847191,1775417446941,-150.0,0.00015115,2]
[419847192,1775417446951,-150.0,0.00015116,2]
[419847193,1775417446961,-150.0,0.00015117,2]
[419847194,1775417446971,-5888.0,0.00015118,2]
[419847195,1775417446980,-150.0,0.00015122,2]
[419847196,1775417446989,-150.0,0.00015125,2]
[419847197,1775417446999,-150.0,0.00015125,2]
[419847198,1775417447008,-150.0,0.00015127,2]
[419847199,1775417447018,-150.0,0.00015133,2]
[419847200,1775417447027,-150.0,0.00015134,2]
[419847201,1775417447037,-504.0,0.00015138,3]
[419847202,1775417447046,-150.0,0.0001514,2]
[419847203,1775417447056,-150.0,0.00015153,2]
[419847204,1775417447065,-150.0,0.00015153,2]
[419847205,1775417447074,-150.0,0.00015155,2]
[419847206,1775417447084,-150.0,0.00015155,2]
[419847207,1775417447093,-150.0,0.00015156,2]
[419847208,1775417447103,-5888.0,0.00015157,2]
[419847209,1775417447113,-150.0,0.00015164,2]
[419847210,1775417447122,-150.0,0.00015172,2]
[419847211,1775417447131,-1000.0,0.00015172,2]
[419847212,1775417447140,-150.0,0.00015172,2]
[419847213,1775417447151,-500.0,0.00015175,2]
[419847214,1775417447160,-151.0,0.00015175,2]
[419847215,1775417447170,-156.587,0.00015175,2]
[419847216,1775417447180,-195.25511793,0.00015175,2]
[419847217,1775417447190,-174.61919141,0.00015175,2]
[419847218,1775417447199,-3000.0,0.00015175,2]
[419847219,1775417447209,-695.39793187,0.00015175,2]
[419847220,1775417447219,-500.0,0.00015175,2]
[419847221,1775417447228,-9211.34798985,0.00015175,2]
[419847222,1775417447237,-3000.0,0.00015175,2]
[419847223,1775417447246,-500.0,0.00015175,2]
[419847224,1775417447256,-3000.0,0.00015175,2]
[419847225,1775417447265,-500.0,0.00015175,2]
[419847226,1775417447274,-3000.0,0.00015175,2]
[419847227,1775417447283,-500.0,0.00015175,2]
[419847228,1775417447292,-500.0,0.00015175,2]
[419847229,1775417447302,-3000.0,0.00015175,2]
[419847230,1775417447311,-500.0,0.00015175,2]
[419847231,1775417447321,-3000.0,0.00015175,2]
[419847232,1775417447330,-3000.0,0.00015175,2]
[419847233,1775417447340,-500.0,0.00015175,2]
[419847234,1775417447349,-200.0,0.00015175,2]
[419847235,1775417447358,-3000.0,0.00015175,2]
[419847236,1775417447367,-500.0,0.00015175,2]
[419847237,1775417447377,-3000.0,0.00015175,2]
[419847238,1775417447387,-500.0,0.00015175,2]
[419847239,1775417447396,-3000.0,0.00015175,2]
[419847240,1775417447406,-500.0,0.00015175,2]
[419847241,1775417447416,-3000.0,0.00015175,2]
[419847242,1775417447425,-500.0,0.00015175,2]
[419847243,1775417447436,-500.0,0.00015175,2]
[419847244,1775417447447,-3000.0,0.00015175,2]
[419847245,1775417447456,-201.93286099,0.00015175,2]
[419847246,1775417447465,-668.65185757,0.00015175,2]
[419847247,1775417447474,-578.20924308,0.00015175,2]
[419847248,1775417447483,-500.0,0.00015175,2]
[419847249,1775417447493,-1000.0,0.00015175,2]
[419847250,1775417447503,-1377.42282659,0.00015175,2]
[419847251,1775417447513,-1000.0,0.00015175,2]
[419847252,1775417447523,-1000.0,0.00015175,2]
[419847253,1775417447531,-1000.0,0.00015175,2]
[419847254,1775417447540,-1000.0,0.00015175,2]
[419847255,1775417447550,-1000.0,0.00015175,2]
[419847256,1775417447559,-1000.0,0.00015175,2]
[419847257,1775417447568,-1000.0,0.00015175,2]
[419847258,1775417447577,-1000.0,0.00015175,2]
[419847259,1775417447586,-1000.0,0.00015175,2]
[419847260,1775417447595,-1000.0,0.00015175,2]
[419847261,1775417447604,-1000.0,0.00015175,2]
[419847262,1775417447613,-201.93286099,0.00015175,2]
[419847263,1775417447622,-170.0,0.00015175,2]
[419847264,1775417447631,-151.0,0.00015175,2]
[419847265,1775417447640,-170.0,0.00015175,2]
[419847266,1775417447650,-151.0,0.00015175,2]
[419847267,1775417447659,-151.0,0.00015175,2]
[419847268,1775417447668,-170.0,0.00015175,2]
[419847269,1775417447677,-151.0,0.00015175,2]
[419847270,1775417447687,-170.0,0.00015175,2]
[419847271,1775417447696,-151.0,0.00015175,2]
[419847272,1775417447705,-170.0,0.00015175,2]
[419847273,1775417447714,-154.76515316,0.00015175,2]
[419847274,1775417447724,-170.0,0.00015175,2]
[419847275,1775417447733,-170.0,0.00015175,2]
[419847276,1775417447743,-170.0,0.00015175,2]
[419847277,1775417447753,-170.0,0.00015175,2]
[419847278,1775417447762,-170.0,0.00015175,2]
[419847279,1775417447771,-170.0,0.00015175,2]
[419847280,1775417447780,-170.0,0.00015175,2]
[419847281,1775417447791,-279.9045709,0.00015175,2]
[419847282,1775417447801,-329.2835348,0.00015175,2]
[419847283,1775417447811,-743.50770149,0.00015175,2]
[419847284,1775417447821,-150.0,0.00015178,2]
[419847285,1775417447830,-308.03873246,0.00015179,2]
[419847286,1775417447839,-1000.0,0.00015179,2]
[419847287,1775417447849,-1000.0,0.00015179,2]
[419847288,1775417447858,-627.70930647,0.00015179,2]
[419847289,1775417447868,-861.43877969,0.00015179,2]
[419847290,1775417447877,-1000.0,0.00015179,2]
[419847291,1775417447886,-1000.0,0.00015179,2]
[419847292,1775417447895,-1000.0,0.00015179,2]
[419847293,1775417447904,-1000.0,0.00015179,2]
[419847294,1775417447913,-1000.0,0.00015179,2]
[419847295,1775417447923,-1000.0,0.00015179,2]
[419847296,1775417447932,-1000.0,0.00015179,2]
[419847297,1775417447941,-1000.0,0.00015179,2]
[419847298,1775417447950,-1000.0,0.00015179,2]
[419847299,1775417447960,-500.99241895,0.00015179,2]
[419847300,1775417447969,-790.32775663,0.00015179,2]
[419847301,1775417447978,-1000.0,0.00015179,2]
[419847302,1775417447987,-500.0,0.00015179,2]
[419847303,1775417447997,-1000.0,0.00015179,2]
[419847304,1775417448006,-1000.0,0.00015179,2]
[419847305,1775417448015,-743.80429884,0.00015179,2]
[419847306,1775417448025,-1000.0,0.00015179,2]
[419847307,1775417448034,-1000.0,0.00015179,2]
[419847308,1775417448043,-1000.0,0.00015179,2]
[419847309,1775417448053,-1000.0,0.00015183,2]
[419847310,1775417448062,-150.0,0.00015184,2]
[419847311,1775417448072,-150.0,0.00015185,2]
[419847312,1775417448081,-150.0,0.00015185,2]